{"text_format":"3","workbook":"xlsx","n_sheets":6,"sheets":["2020 2021","1 quarter ","Sheet1","Sheet2","Sheet3","Sheet4"],"read":"whole","date_system":"1900"}

{"sheet":"2020 2021","index":0,"n_rows":97,"n_cols":58,"rows_kept":97,"merged":[[1,3,1,4],[1,5,1,6],[1,7,1,8]]}
["SCHOOL FURNITURE 2021 2022"]
["NO","ITEM DESCRIPTION","PLACE","DOUBLE TABLES",null,"CHAIRS",null,"DOUBLE DESKS ",null,"DOUBLE TABLES","SINGLE TABLES","CHAIRS","DOUBLE DESKS","TEACHERS DESKS","TEACHERS CHAIRS",null,"HIGHER PRIMARY CHAIRS        ","LOWER PRIMARY TABLE ","LOWER PRIMARY SINGLE TABLE ","HIGHER PRIMARY TABLE","HIGHER PRIMARY SINGLE TABLE","CHAIRS        LOWER PR","GRADE R CHAIR","DOUBLE TABLES  HIGHER PRI","DOUBLE TABLES  LOWER PRI","GRADE R TABLE","DOUBLE DESKS  HIGHER PRIMARY","DOUBLE DESKS LOWER PRI","CHAIRS          SECONDARY","SECONDARY TABLE ","DOUBLE TABLES             SECONDARY","SINGLE TABLES           SECONDARY","SINGLE DESK","OAK DESK ","COMBINATION DESK SECONDARY","TEACHERS  CHAIRS ","TEACHERS DESKS  DE ","DINING HALL CHAIRS ","FILLING CABINENT S","CABINETS","ROUND TABLES ","LABORATORY","DOUBLE SIDED CHALKBOARD ","LBORATORY TABLES","OFFICE DESK ","BOOKSHELF ","COAT STAND","CORNER TABLE","COMPUTER TABLE","CREDENZA","HIGH BACK SWIVEL AND TWIST CHAIR WITH ARMS ","CONNECTING CORNER","GLAZED DOOR BOOKCASE","CUPBOARD","STATIONERY CUPBOARD","MATTERESS ","INDUNA BED "]
[1,"MERITING PRIMARY SCHOOL ","RUSTENBURG ",{"$nulls":13},150,{"$nulls":6},150]
[2,"CHARORA SECONDARY  SCHOOL","RUSTENBURG ",{"$nulls":25},200,null,null,100]
[3,"OKOMELANG PRIMARY SCHOOL ","MOSES KOTANE ",{"$nulls":13},200,50,null,150,null,100,{"$nulls":13},20,18]
[4,"MAFENYA PRIMARY SCHOOL ","RUSTENBURG ",{"$nulls":16},150,{"$nulls":10},{"$f":"SUM(T6:AD6)","v":150}]
[5,"DIE HOERSKOOL WAGPOS ","RUSTENBURG ",{"$nulls":27},0,{"$nulls":3},250]
[6,"AREGANENG SCHOOL ","RUSTENBURG ",{"$nulls":27},0,{"$nulls":20},5,5]
[7,"LETLOPI SECONDARY SCHOOL ","RUSTENBURG ",{"$nulls":25},100,100,200]
[8,"MOGWASE TECHNICAL SECONDARY SCHOOL","MOSES KOTANE ",{"$nulls":25},100,null,100,200,null,2,{"$nulls":15},5,6,2,null,null,5]
[9,"BOSHOEK PRIMARY SCHOOL ","RUSTENBURG ",{"$nulls":14},50,{"$nulls":3},50,{"$nulls":8},50]
[10,"KELEDI SECONDARY SCHOOL ","RUSTENBURG ",{"$nulls":26},50,50,{"$nulls":18},5,30,{"$nulls":3},5,null,6]
[11,"IKEETLETSO SECONDARY SCHOOL ","RUSTENBURG ",{"$nulls":25},200,100,300]
[12,"KGABALATSANE PRIMARY SCHOOL ","MADIBENG ",{"$nulls":27},0,{"$nulls":19},30]
[13,"MAKGEBETLOANE PRIMARY SCHOOL ","MADIBENG ",{"$nulls":13},100,null,null,100,{"$nulls":10},100]
[14,"LAERSKOOL GENERAAL HENDRIK SCHOEMAN ","MADIBENG ",{"$nulls":13},20,null,null,40,{"$nulls":10},40]
[15,"KGABALATSANE PRIMARY SCHOOL ","MADIBENG ",{"$nulls":14},25,null,100,{"$nulls":10},100]
[16,"MAKGATLHANONG PRIMARY SCHOOL ","MADIBENG ",{"$nulls":13},40,25,null,20,null,50,{"$nulls":8},70]
[17,"PHOLOKGOLO PRIMARY SCHOOL ","MORETELE ",{"$nulls":13},120,null,null,60,null,null,10,null,null,5,{"$nulls":4},75]
[{"$nulls":30},0]
[18,"MMAMARUMO PRIMARY SCHOOL ","MORETELE ",{"$nulls":13},20,null,null,20,null,null,10,null,null,10,{"$nulls":4},40]
[19,"ITUMELENG SECONDARY SCHOOL","MADIBENG",{"$nulls":25},120,null,120,100]
[20,"SEKGOPI PRIMARY SCHOOL","MORETELE ",{"$nulls":13},200,null,null,120,{"$nulls":10},120]
[21,"RAMOSHIE PRIMARY SCHOOL","MORETELE ",{"$nulls":13},150,{"$nulls":5},40,75,null,20,null,null,60,60,255,{"$nulls":4},10,10]
[22,"MOKHINE PRIMARY SCHOOL ","MOSES KOTANE ",{"$nulls":13},150,150,{"$nulls":5},75,75,{"$nulls":5},150,{"$nulls":4},29,19]
[23,"PHOLOKGOLO PRIMARY SCHOOL ","MORETELE ",{"$nulls":13},120,{"$nulls":5},10,60,null,5,{"$nulls":4},75]
[24,"BAPHALANE PRIMARY SCHOOL ","MOSES KOTANE ",{"$nulls":13},150,null,null,75,{"$nulls":10},75]
[25,"MARIKANA PRIMARY SCHOOL","RUSTENBURG ",{"$nulls":14},75,null,null,100,150,{"$nulls":8},250]
[26,"LETSIBOGO   PRIMARY SCHOOL ","RUSTENBURG ",{"$nulls":14},50,null,null,100,100,{"$nulls":8},200]
[37,"PLATINUM VILLAGE PRIMARY SCHOOL","RUSTENBURG ",{"$nulls":13},100,160,null,null,100,80]
[27,"RE-E-LWELE PRIMARY SCHOOL ","MADIBENG",{"$nulls":13},85,25,null,50,null,50,{"$nulls":3},5,{"$nulls":4},105]
[28,"PAARDEKRAAL PRIMARY SCHOOL","RUSTENBURG ",{"$nulls":14},75,{"$nulls":3},150,{"$nulls":8},150]
[29,"TSHIRILOGANG PRIMARY SCHOOL","RUSTENBURG ",{"$nulls":13},100,75,null,null,100,150,{"$nulls":8},250]
[30,"MFIHLAKALO SPECIAL SCHOOL","MADIBENG",{"$nulls":16},75,{"$nulls":10},75,{"$nulls":5},4]
[31,"SJAMBOK PRIMARY SCHOOL","MADIBENG",{"$nulls":23},50,{"$nulls":3},50,{"$nulls":4},20]
[32,"MARANG PRIMARY SCHOOL","MADIBENG",{"$nulls":13},50,null,null,25,{"$nulls":6},50,{"$nulls":3},75,{"$nulls":4},10,10]
[33,"SEKWATI PRIMARY SCHOOL","MADIBENG",{"$nulls":13},1560,null,null,50,{"$nulls":4},{"$f":"SUM(Y3:Y36)","v":75},null,50,{"$nulls":3},175,{"$nulls":4},10,10]
[34,"MOTLHANA PRIMARY SCHOOL","MADIBENG",{"$nulls":13},100,null,null,50,null,null,40,null,null,20,{"$nulls":9},20,10,null,5]
[35,"KEITUMETSE PRIMARY SCHOOL","MADIBENG",{"$nulls":13},100,null,null,50,{"$nulls":6},50,{"$nulls":8},10,10]
[36,"GEELHOUTPARK SEC SCHOOL","RUSTENBURG ",{"$nulls":25},150,75]
[37,"RANKAE PRIMARY SCHOOL","MOSES KOTANE ",{"$nulls":13},160,107,null,80,null,55,32,null,null,16,{"$nulls":9},10,10]
[38,"MOTLHE PRIMARY SCHOOL ","MORETELE ",{"$nulls":13},100,50,null,50,null,100,20,null,null,20]
[39,"DIKGORWANENG PRIMARY SCHOOL ","MORETELE ",{"$nulls":13},100,50,null,50,null,100,30,null,null,30]
[40,"MOJADEDI SECONDARY SCHOOL ","RUSTENBURG ",{"$nulls":25},100,50]
[41,"MOGWASE TECHNICAL SCHOOL ","MOSES KOTANE ",{"$nulls":25},100]
[42,"MICHAEL MODISAKENG SECONDARY ","MADIBENG",{"$nulls":25},150,null,null,75]
[43,"TSEWE PRIMARY ","MADIBENG",{"$nulls":13},100,null,null,50,{"$nulls":6},50,{"$nulls":8},10,5]
[44,"MOLEBATSI SECONDARY SCHOOL ","MORETELE ",{"$nulls":25},100,50]
[45,"TLAPA LA THUTO PRIMARY ","MADIBENG",{"$nulls":13},100,50,{"$nulls":8},50,{"$nulls":8},10,10]
[46,"RAMATLA PRIMARY SCHOOL","MORETELE ",{"$nulls":13},30,null,null,20]
[47,"SEFIKILE PRIMARY SCHOOL ","MOSES KOTANE ",{"$nulls":13},100,null,null,50]
[48,"MMATOPE PRIMARY SCHOOL ","MADIBENG",{"$nulls":13},40,null,null,30,{"$nulls":6},20,{"$nulls":8},15,15]
[49,"MORONGWA PRIMARY SCHOOL","MOSES KOTANE ",{"$nulls":13},100,{"$nulls":3},100]
[50,"NTHEBE PRIMARY SCHOOL ","MOSES KOTANE ",{"$nulls":13},50,{"$nulls":3},50]
[51,"MOREMOGOLO PRIMARY SCHOOL ","RUSTENBURG ",{"$nulls":13},80,{"$nulls":3},80]
[52,"ABANA PRIMARY SCHOOL","RUSTENBURG ",{"$nulls":13},100,{"$nulls":3},100]
[53,"BANA PELE PRIMARY SCHOOL","RUSTENBURG ",{"$nulls":13},100,{"$nulls":3},100]
[54,"MODULE PRIMARY SCHOOL","MOSES KOTANE ",{"$nulls":13},80,{"$nulls":3},80]
[55,"L.D MATSHEGO PRIMARY SCHOOL ","RUSTENBURG ",{"$nulls":13},100,{"$nulls":3},100]
[56,"BATLHALERWA PRIMARY SCHOOL","MOSES KOTANE ",{"$nulls":13},90,{"$nulls":3},90]
[57,"LEFARAGATLHA PRIMARY SCHOOL ","RUSTENBURG ",{"$nulls":13},100,{"$nulls":3},100]
[58,"MOKGAOTSI PRIMARY SCHOOL ","MOSES KOTANE ",{"$nulls":15},50,null,50]
[59,"MATIKI MOOKETSI PRIMARY SCHOOL","MOSES KOTANE ",{"$nulls":15},50,null,50]
[60,"NALEDI YA MASA PRIMARY SCHOOL ","MOSES KOTANE ",{"$nulls":17},100]
[61,"KGETLENG PRIMARY SCHOOL","RUSTENBURG ",{"$nulls":17},100]
[62,"MATHOPESTAT PRIMARY SCHOOL","RUSTENBURG ",{"$nulls":14},25,null,25,{"$nulls":5},10,{"$nulls":9},11,10,{"$nulls":7},1,null,null,1,null,1,1]
[63,"NGOBI PRIMARY SCHOOL","MORETELE ",{"$nulls":13},20,{"$nulls":3},20,null,10]
[64,"THIPE PRIMARY SCHOOL","MORETELE ",{"$nulls":17},100,null,50,null,null,50]
[65,"SENGANA PRIMARY SCHOOL","MORETELE ",{"$nulls":17},50,{"$nulls":4},50]
[66,"MAKEKENG PRIMARY SCHOOL","MORETELE ",{"$nulls":17},50,{"$nulls":4},50]
[67,"SWARISANANG PRIMARY SCHOOL","MORETELE ",{"$nulls":13},50,null,50,null,50]
[68,"TLHALAPITSI PRIMARY SCHOOL","MOSES KOTANE ",{"$nulls":13},70,null,null,70,{"$nulls":5},10]
[69,"T.K MOKOYANE PRIMARY SCHOOL","MORETELE ",{"$nulls":13},100,50,null,50,null,100,60,null,null,30]
[70,"MODUBYANE PRIMARY SCHOOL","MORETELE ",{"$nulls":13},50,null,null,25]
[71,"THEBENARE PRIMARY SCHOOL","MOSES KOTANE ",{"$nulls":13},50,null,null,25]
[72,"MODIMOKWANE PRIMARY SCHOOL","MORETELE ",{"$nulls":13},100,50,null,50,null,100,20,null,null,20]
[73,"DOOKA PRIMARY SCHOOL","MORETELE ",{"$nulls":13},100,50,null,50,null,100,{"$nulls":4},{"$f":"SUM(AA3:AA76)","v":320}]
[74,"MOGOGELO PRIMARY SCHOOL ","MORETELE ",{"$nulls":13},100,50,null,50,null,100]
[75,"POIFO PRIMARY SCHOOL","MOSES KOTANE ",{"$nulls":13},100,null,null,50]
[76,"LAERSKOOL SONOP ","MADIBENG",{"$nulls":13},50,null,null,100]
[77,"SHAKUNG PRIMARY SCHOOL","MADIBENG",{"$nulls":13},40,{"$nulls":6},20,null,null,40,{"$nulls":8},10,5]
[78,"MOHAJANE PRIMARY SCHOOL","MADIBENG",{"$nulls":13},100,{"$nulls":6},50,null,null,50,{"$nulls":8},10,10]
[79,"MOTSISI PRIMARY SCHOOL","MOSES KOTANE ",{"$nulls":13},100,null,null,50]
[80,"RUSKRAAL PRIMARY SCHOOL","RUSTENBURG ",{"$nulls":13},200,{"$nulls":18},20]
[{"$nulls":16},{"$f":"SUM(Q3:Q84)","v":6275},1242,150,2010,1770,1535,332,430,{"$f":"SUM(Y37)","v":75},346,{"$f":"SUM(AA12:AA84)","v":730},null,{"$f":"SUM(AC3:AC84)","v":1380},{"$f":"SUM(AD3:AD84)","v":485},3240,{"$f":"SUM(AF3:AF84)","v":475},null,2,{"$f":"SUM(AI3:AI37)","v":250},{"$f":"SUM(AJ3:AJ84)","v":225},{"$f":"SUM(AK3:AK84)","v":156},null,{"$f":"SUM(AM3:AM40)","v":5},{"$nulls":5},{"$f":"SUM(AS12:AS71)","v":1},null,null,1,1,{"$f":"SUM(AX3:AX40)","v":10},{"$f":"SUM(AY3:AY71)","v":67},{"$f":"SUM(AZ8:AZ40)","v":7},{"$f":"SUM(BA3:BA40)","v":5},null,{"$f":"SUM(BC3:BC40)","v":10},null,{"$f":"SUM(BE3:BE40)","v":6},21221]
[]
[]
[]
[]
[{"$nulls":56},".."]
[]
[]
[]
[]
[]
[]
[{"$nulls":24}," "]

{"sheet":"1 quarter ","index":1,"n_rows":34,"n_cols":57,"rows_kept":34,"merged":[[1,3,1,4],[1,5,1,6],[1,7,1,8]]}
["SCHOOL FURNITURE 2021 2022"]
["NO","ITEM DESCRIPTION","PLACE","DOUBLE TABLES",null,"CHAIRS",null,"DOUBLE DESKS ",null,"DOUBLE TABLES","SINGLE TABLES","CHAIRS","DOUBLE DESKS","TEACHERS DESKS","TEACHERS CHAIRS",null,"HIGHER PRIMARY CHAIRS        ","LOWER PRIMARY TABLE ","HIGHER PRIMARY TABLE","CHAIRS        LOWER PR","GRADE R CHAIR","DOUBLE TABLES  HIGHER PRI","DOUBLE TABLES  LOWER PRI","GRADE R TABLE","DOUBLE DESKS  HIGHER PRIMARY","DOUBLE DESKS LOWER PRI","CHAIRS          SECONDARY","SECONDARY TABLE ","DOUBLE TABLES             SECONDARY","SINGLE TABLES           SECONDARY","SINGLE DESK","OAK DESK ","COMBINATION DESK SECONDARY","TEACHERS  CHAIRS ","TEACHERS DESKS  DE ","DINING HALL CHAIRS ","FILLING CABINENT S","CABINETS","ROUND TABLES ","LABORATORY","DOUBLE SIDED CHALKBOARD ","LBORATORY TABLES","OFFICE DESK ","BOOKSHELF ","COAT STAND","CORNER TABLE","COMPUTER TABLE","CREDENZA","HIGH BACK SWIVEL AND TWIST CHAIR WITH ARMS ","CONNECTING CORNER","GLAZED DOOR BOOKCASE","CUPBOARD","STATIONERY CUPBOARD","MATTERESS ","INDUNA BED ",null,"TOTAL"]
[1,"MERITING PRIMARY SCHOOL ","RUSTENBURG ",{"$nulls":13},150,{"$nulls":4},150]
[2,"CHARORA SECONDARY  SCHOOL","RUSTENBURG ",{"$nulls":23},200,null,null,100]
[3,"OKOMELANG PRIMARY SCHOOL ","MOSES KOTANE ",{"$nulls":13},200,50,150,100,{"$nulls":13},20,18]
[4,"MAFENYA PRIMARY SCHOOL ","RUSTENBURG ",{"$nulls":15},150,{"$nulls":9},{"$f":"SUM(S6:AB6)","v":150}]
[5,"DIE HOERSKOOL WAGPOS ","RUSTENBURG ",{"$nulls":25},0,{"$nulls":3},250]
[6,"AREGANENG SCHOOL ","RUSTENBURG ",{"$nulls":25},0,{"$nulls":20},5,5]
[7,"LETLOPI SECONDARY SCHOOL ","RUSTENBURG ",{"$nulls":23},100,100,200]
[8,"MOGWASE TECHNICAL SECONDARY SCHOOL","MOSES KOTANE ",{"$nulls":25},0,null,null,2,{"$nulls":15},5,6,2,null,null,5]
[9,"BOSHOEK PRIMARY SCHOOL ","RUSTENBURG ",{"$nulls":14},50,null,50,{"$nulls":8},50]
[10,"KELEDI SECONDARY SCHOOL ","RUSTENBURG ",{"$nulls":24},50,50,{"$nulls":18},5,30,{"$nulls":3},5,null,6]
[11,"IKEETLETSO SECONDARY SCHOOL ","RUSTENBURG ",{"$nulls":23},200,100,300]
[12,"KGABALATSANE PRIMARY SCHOOL ","MADIBENG ",{"$nulls":25},0,{"$nulls":19},30]
[13,"MAKGEBETLOANE PRIMARY SCHOOL ","MADIBENG ",{"$nulls":13},100,null,100,{"$nulls":9},100]
[14,"LAERSKOOL GENERAAL HENDRIK SCHOEMAN ","MADIBENG ",{"$nulls":13},20,null,40,{"$nulls":9},40]
[15,"KGABALATSANE PRIMARY SCHOOL ","MADIBENG ",{"$nulls":14},25,100,{"$nulls":9},100]
[16,"MAKGATLHANONG PRIMARY SCHOOL ","MADIBENG ",{"$nulls":13},40,25,20,50,{"$nulls":8},70]
[17,"PHOLOKGOLO PRIMARY SCHOOL ","MORETELE ",{"$nulls":13},120,null,60,null,10,null,null,5,{"$nulls":4},75]
[18,"MMAMARUMO PRIMARY SCHOOL ","MORETELE ",{"$nulls":13},20,null,20,null,10,null,null,10,{"$nulls":4},40]
[19,"ITUMELENG SECONDARY SCHOOL","MADIBENG",{"$nulls":23},120,null,120,100]
[20,"SEKGOPI PRIMARY SCHOOL","MORETELE ",{"$nulls":13},200,null,120,{"$nulls":9},120]
[21,"RAMOSHIE PRIMARY SCHOOL","MORETELE ",{"$nulls":13},150,{"$nulls":3},40,75,null,20,null,null,60,60,255,{"$nulls":4},10,10]
[22,"MOKHINE PRIMARY SCHOOL ","MOSES KOTANE ",{"$nulls":13},150,150,{"$nulls":3},75,75,{"$nulls":5},150,{"$nulls":4},29,19]
[23,"PHOLOKGOLO PRIMARY SCHOOL ","MORETELE ",{"$nulls":13},120,{"$nulls":3},10,60,null,5,{"$nulls":4},75]
[24,"BAPHALANE PRIMARY SCHOOL ","MOSES KOTANE ",{"$nulls":13},150,null,75,{"$nulls":9},75]
[25,"MARIKANA PRIMARY SCHOOL","RUSTENBURG ",{"$nulls":14},75,null,150,{"$nulls":8},150]
[26,"LETSIBOGO   PRIMARY SCHOOL ","RUSTENBURG ",{"$nulls":14},50,null,100,{"$nulls":8},100]
[37,"PLATINUM VILLAGE PRIMARY SCHOOL","RUSTENBURG ",{"$nulls":14},160,null,80]
[27,"RE-E-LWELE PRIMARY SCHOOL ","MADIBENG",{"$nulls":13},85,25,50,50,{"$nulls":3},5,{"$nulls":4},105]
[28,"PAARDEKRAAL PRIMARY SCHOOL","RUSTENBURG ",{"$nulls":14},75,null,150,{"$nulls":8},150]
[29,"TSHIRILOGANG PRIMARY SCHOOL","RUSTENBURG ",{"$nulls":14},75,null,150,{"$nulls":8},150]
[30,"MFIHLAKALO SPECIAL SCHOOL","MADIBENG",{"$nulls":15},75,{"$nulls":9},75,{"$nulls":5},4]
[{"$nulls":16},{"$f":"SUM(Q3:Q33)","v":1505},760,960,880,70,360,75,45,null,null,{"$f":"SUM(AA3:AA33)","v":680},{"$f":"SUM(AB3:AB33)","v":310},{"$f":"SUM(AC3:AC33)","v":2700},{"$f":"SUM(AD3:AD33)","v":200},null,{"$f":"SUM(AF3:AF33)","v":2},{"$f":"SUM(AG3:AG33)","v":250},{"$f":"SUM(AH3:AH33)","v":59},{"$f":"SUM(AI3:AI33)","v":51},{"$nulls":12},{"$f":"SUM(AV3:AV33)","v":10},{"$f":"SUM(AW3:AW33)","v":66},{"$f":"SUM(AX3:AX33)","v":7},{"$f":"SUM(AY3:AY33)","v":5},null,{"$f":"SUM(BA3:BA33)","v":10},null,{"$f":"SUM(BC3:BC33)","v":6},null,{"$f":"SUM(Q34:BD34)","v":9011}]

{"sheet":"Sheet1","index":2,"n_rows":152,"n_cols":26,"rows_kept":152}
[null,null,"BOJANALA","SCHOOL FURNITURE 2023/2024"]
["NO","NAME OF SCHOOL","SUB-DISTRICT","SCHOOL'S ADDRESS","SCHOOLS  CONTACTS","HIGHER PRIMARY CHAIRS        ","LOWER PRIMARY TABLE ","HIGHER PRIMARY TABLE","CHAIRS  LOWER PRIMARY","GRADE R CHAIR","SINGLE TABLES  HIGHER PRI","SINGLE TABLES  LOWER PRI","GRADE R TABLE","DOUBLE DESKS  HIGHER PRIMARY","DOUBLE DESKS LOWER PRI","SINGLE DESKS  HIGHER PRIMARY","SINGLE DESKS LOWER PRI","CHAIRS          SECONDARY","DOUBLE TABLES             SECONDARY","SINGLE TABLES           SECONDARY","SINGLE DESK","COMBINATION DESK SECONDARY","TEACHERS  CHAIRS ","TEACHERS DESKS  ","CABINETS"]
[1,"Thulare Secondary School","MORETELE",null,"079 286 7227",{"$nulls":12},920,920]
[2,"Machakela Mamodibo Sec","MORETELE",null,"082 899 5719",{"$nulls":12},1238,1238]
[3,"Hendrick Makapan Sec","MORETELE","632 Block B, Dikebu village Makapanstad","083 533 2164",{"$nulls":12},60,120]
[4,"Mmakaunyana Secondary","MORETELE","Stand number E83A/1013 PHASE ONE Mmakaunyane 0207","079 112 7062",{"$nulls":12},100,200]
[5,"Maruatona Dikobe Secondary","MORETELE",null,"082 317 7755",{"$nulls":12},100,100]
[6,"Loalane Seconadry School","MORETELE","405 Moshabelo Section Ratjiepan 0146","083 412 4871",{"$nulls":12},200,400]
[7,"Kgaphamadi Secondary","MORETELE","Plot no:378 Bosplaas West 0409","076 904 9822",{"$nulls":12},200,200]
[8,"Matlaisane Secondary","MORETELE","8564 Ipeleng section, Dertig 0418","061 224 5270",{"$nulls":12},100,100]
[9,"Kosea-Moeka Primary","MORETELE","E878 Zone 3, Moeka village 0440","083 216 1814"]
[10,"Dikgorwaneng Primary","MORETELE","Jr 96 Itireleng Section Mogogelo village Hammanskraal","078 405 5650",null,null,300,600]
[11,"Makgatlhanong Primary","MORETELE","Makaunyana No 2 E308 Mmakaunyana","082 632 8875",200,null,100]
[12,"Mmamarumo Primary","MORETELE","751 Block C Greenside","076 540 3537",180,null,90,140,36,null,null,8]
[13,"Makgabetloane Primary","MORETELE","E 458 Motseng Section Makgabetloane village Jericho 0189","073 384 6269",34,null,20,43,20,null,null,20]
[14,"T.K Mokonyane Primary","MORETELE","3576 Clinton Garden Motla village","082 439 5349",null,null,50]
[15,"Kwa-mocha Primary","MORETELE","754 Block C1, Greenside Maubane","076 479 6174",100,null,50,50]
[16,"Relebogile Primary School","MORETELE","L244 Legaganeng Section Swartdamstad",{"v":728050323,"d":"728,050,323"},50,null,50]
[17,"Lekgolo Primary School","MORETELE","32 Block A Lekgolo village","079 455 1674",40,null,20]
[18,"Morokwa-Ditlou Primary","MORETELE","Stand no.001 Ruigtesloot 0486","065 521 6987",150,null,100,{"$nulls":14},10,10]
[19,"Sekgopi Primary School","MORETELE","7001 Zone 7 Lebotloane 0411","079 356 9646",100,null,50]
[20,"Khubamelo Primary School","MORETELE","E119 Nyakelang Section Mmakaunyana 0207","083 410 2901"]
[21,"Boitemogelo Primary","MORETELE",null,"072 603 6045",{"$nulls":3},120,null,60]
[22,"Dooka Primary School","MORETELE","Plot No. 239 Bosplaas East Hammanskraal","082 944 1929",100,null,50]
[23,"Mahobotle Primary School","MORETELE","1347 Lefatlheng Section Mathibestad ","073 366 8175",100,null,50]
[24,"BOTLHABELO SECONDARY ","Madibeng",null,670606689,{"$nulls":12},300,null,null,150,150]
[25,"BAPO PRIMARY","Madibeng",null,711585620,100,{"$nulls":9},100]
[26,"Kgwanyape Primary","Madibeng",null,761028590,200,{"$nulls":7},200,null,100]
[37,"Kutlwano Primary","Madibeng",null,715626203,200,{"$nulls":9},85]
[27,"Mogale Seconday","Madibeng",null,825742527,85]
[28,"Modisakwano Primary","Madibeng",null,736456259,100,{"$nulls":7},50]
[29,"Nkukime Primary","Madibeng",null,832072098,200,{"$nulls":7},100]
[30,"Oukasie Primary","Madibeng",null,731720229,150,{"$nulls":9},150]
[31,"Pansdrift Primary","Madibeng",null,829560160,120,{"$nulls":7},60,null,100]
[32,"Rooikoppies Primary","Madibeng",null,717423332,40,{"$nulls":9},40]
[33,"Segwetlhane Primary","Madibeng",null,724469652,100,{"$nulls":7},100]
[34,"Sefatanare Primary","Madibeng",null,710500769,100,{"$nulls":7},100]
[35,"ST Catherine ","Madibeng",null,null,250,{"$nulls":7},100]
[36,"ST Theresa Secondary","Madibeng",null,826877201,200,{"$nulls":7},100,null,150]
[37,"Voorwarts Primary","Madibeng",null,731212222,200,{"$nulls":7},100,null,100]
[38,"Rekgonne Bapo","Madibeng",null,8329395878,100,{"$nulls":7},50]
[39,"Motlhake Primary","Madibeng",null,836988453,300,{"$nulls":9},300]
[40,"Mothotlung Secondary","Madibeng",null,729077055,{"$nulls":12},300,null,300]
[41,"New Majakaneng Primary","Madibeng",null,788020639,584,{"$nulls":9},584]
[42,"Odi Primary","Madibeng",null,828091002,200,{"$nulls":9},200]
[43,"Seroophata Primary","Madibeng",null,828306653,200,{"$nulls":9},200]
[44,"Michael Modisakeng Secondary","Madibeng",null,788183175,{"$nulls":10},50,{"$nulls":4},50,null,20,20]
[45,"Thaba Morula Secondary","Madibeng",null,723475487,50,{"$nulls":9},50]
[46,"IB Damons Combined","Madibeng",null,635472803,250,{"$nulls":9},250]
[47,"Katakane Primary","Madibeng",null,725231540,250,{"$nulls":9},100]
[48,"Mohajane Primary","Madibeng",null,718776886,150,{"$nulls":9},150]
[49,"Ennis Thabong Primary","Madibeng",null,722496181,100,{"$nulls":9},100]
[50,"Re e Lwele Primary","Madibeng",null,827617816,100,{"$nulls":7},50]
[51,"Molelwaneng Primary ","Madibeng",null,837595888,60,{"$nulls":9},100]
[52,"Lot Phalatse Primary","Madibeng",null,null,400,{"$nulls":7},60,{"$nulls":3},300,null,300]
[53,"Lesedi Le Legolo Primary","Madibeng",null,null,30,{"$nulls":16},20]
[54,"Jethro Pelle Primary ","Madibeng",null,null,86,null,25,{"$nulls":14},20,20]
[55,"Maledu Molepe","Madibeng",null,null,100,{"$nulls":4},86,{"$nulls":11},24,40]
[56,"Tlhoafalo Primary","Madibeng",null,null,80,{"$nulls":4},100,{"$nulls":11},22,15]
[57,"Sehibidu Primary","Madibeng",null,null,150,{"$nulls":4},100,{"$nulls":11},26,20]
[58,"Ikatisong Secondary","Madibeng",{"$nulls":14},150,null,150,null,null,70,40]
[59,"Lorato Primary","Madibeng",null,null,150,{"$nulls":4},150,{"$nulls":11},32,32]
[60,"Micha Kgasi Secondary","Madibeng",{"$nulls":14},150,null,150,null,null,60,60]
[61,"Ontlametse Phalatse Primary","Madibeng",null,null,150,{"$nulls":4},150,{"$nulls":11},25,25]
[62,"Oskraal Primary","Madibeng",null,null,205,{"$nulls":4},100,{"$nulls":11},10]
[63,"Tlhasedi Primary","Madibeng",null,null,100,{"$nulls":4},103,{"$nulls":11},27,27]
[64,"Central Primary","Madibeng",{"$nulls":10},250,{"$nulls":8},15,15]
[65,"Tlhophane ","Madibeng",null,null,100,{"$nulls":16},15,10]
[66,"Machadam Combined ","Madibeng",null,null,100,{"$nulls":11},200,null,300,null,null,10,10]
[67,"Central Secondary","Madibeng",{"$nulls":14},150,null,null,150,null,10,15]
[68,"Khulusa Primary","Madibeng",null,null,20,{"$nulls":9},10,{"$nulls":6},15,5]
[69,"Tlhapi Morue","Madibeng",null,null,200,{"$nulls":9},50,{"$nulls":6},15]
[70,"Laerskool Brits","Madibeng",null,null,10,{"$nulls":9},10,{"$nulls":6},20]
[71,"Laerskool Olienpark","Madibeng",null,null,40,{"$nulls":9},20,{"$nulls":6},20]
[72,"Thornhill Primary","Madibeng",null,null,50,{"$nulls":9},50,{"$nulls":6},15]
[73,"Morekolodi Primary","Madibeng",null,null,50,{"$nulls":9},50,{"$nulls":6},10]
[74,"Glenwoods ","Madibeng",null,null,50,{"$nulls":9},150,{"$nulls":6},10]
[75,"Hoerskool Wagpos","Madibeng",{"$nulls":14},300,null,null,100]
[76,"Polonia Primary","Madibeng",null,null,130,{"$nulls":9},50]
[77,"BK Guma Primary ","Madibeng",null,null,250,null,250,{"$nulls":14},10,10]
[78,"Klipvoor Primary","Madibeng",null,null,4,null,4]
[79,"Komanae Primary ","Madibeng",null,null,150,null,300,null,null,75,75,{"$nulls":10},27,27]
[80,"Khothalo Primary","Madibeng",null,null,200,null,200,{"$nulls":14},5,22]
[81,"Lethabong Primary","Madibeng",null,null,50,null,50]
[82,"Lot Mashiane Sec","Madibeng",{"$nulls":14},300,null,300,null,null,50,50]
[83,"Madiba A Toloane Sec","Madibeng",{"$nulls":14},250,null,250]
[84,"Madinyane Primary ","Madibeng",null,null,50,null,50,{"$nulls":14},8,8]
[85,"Mafale primary","Madibeng",null,null,300,null,300]
[86,"Mmatope Primary","Madibeng",null,null,30,null,30]
[87,"Rekopantswe Sec","Madibeng"]
[88,"Tumo Primary","Madibeng",null,null,100,null,100]
[89,"Tsogwe Primary","Madibeng",null,null,60,null,60]
[90,"Tshefoge Primary","Madibeng",null,null,140,null,140]
[91,"Phutanang Primary ","Madibeng",null,null,200,null,200,{"$nulls":14},26,26]
[92,"Molelwane PS","Madibeng",null,null,15,null,10,{"$nulls":14},8]
[93,"Disigwane PS","Madibeng",null,null,15,null,15,{"$nulls":14},5]
[94,"Edward Primary school","Madibeng",null,null,150,null,150,{"$nulls":14},20]
[95,"Thuto Pele Sec ","Madibeng",{"$nulls":14},400,200]
[96,"Charles Mamogale PS","Madibeng",null,null,110,null,220]
[97,"Tolamo PS","Madibeng",null,null,100,null,200]
[98,"Tebogo Primary school","Madibeng",{"$nulls":10},150,{"$nulls":9},10]
[]
[99,"LAERSKOOL SONOP","Madibeng",null,null,80,null,50,{"$nulls":5},25]
[100,"SEMETSA SEC","MOSES KOTANE","BAPO 11 VILLAGE, BAPONG",{"$nulls":13},100,null,100,null,null,10,10,10]
[101,"THEBE YA TLHAJWA SEC","MOSES KOTANE","BRAAKUIL VILLAGE",792730978,{"$nulls":12},200,null,200,null,null,12,12,10]
[102,"MADIMA PRIM","MOSES KOTANE","MANAMAKGOTENG VILLAGE",782106010,100,50,100,50,{"$nulls":13},10,10,5]
[103,"ITUMELENG SEC","MOSES KOTANE","LEDIG VILLAGE",603236948,{"$nulls":12},150,null,150,null,null,20,10,10]
[104,"SEDIBELO SEC","MOSES KOTANE","LESETLHENG VILLAGE, SAULSPOORT",739753389,{"$nulls":12},120,null,120,null,null,25,15,10]
[105,"MANAMAKGOTHA SEC","MOSES KOTANE","MANAMAKGOTEG VILLAGE",648123183,{"$nulls":12},150,50,100,null,null,20,10,10]
[106,"MOTLHAJOE PRIM","MOSES KOTANE","RAMOTLHAJOE VILLAGE",null,80,50,80,50,{"$nulls":13},8,8]
[107,"MADUTLE PRIMARY","MOSES KOTANE","WEGEVAL VILLAGE. SAULSPOORT0824712655",null,130,100,150,100,{"$nulls":13},10,10,9]
[108,"GAOTIME SEC","MOSES KOTANE","NO.3 PHAHAMA SECTION MMOROGONG",642762080,{"$nulls":12},27,{"$nulls":3},27]
[109,"DINKWE PRIMRY SCHOOL","MOSES KOTANE",{"$nulls":4},70,{"$nulls":5},20]
[110,"MOGWASE TECHINCAL SCHOOL","MOSES KOTANE",{"$nulls":14},100,null,100]
[111,"REIPUSENG SEC","MOSES KOTANE","203 IPOPENG SECTION VREDE",834787802,{"$nulls":12},400,150,{"$nulls":3},15,15]
[112,"ABANA PRIMARY","RUSTEBURG","MOKOLOKWE STR, BOITEKONG",null,80,50,80,50]
[113,"GRENVILLE SEC","RUSTEBURG","98 KLOPPER STR, RUSTENBURG",{"$nulls":13},100,null,null,100]
[114,"BOTHIBELLO PRIM","RUSTENBURG","PHATSIMA VILLAGE",739520213,100,60,100,80]
[115,"MARIKANA PRIMARY","RUSTENBURG","2218 TSAKANE STR, MARIKANA",145723216,100,100,100,100]
[116,"REEBONE SEC","RUSTENBURG","SWARTUGGENS",832819292,{"$nulls":12},200,null,200,null,700,45,45,45]
[117,"BOIKAGONG PRIMARY","RUSTENBURG","PAARDEKRAAL EXT 3",735930213,120,100,120,100]
[118,"KARLIEN PARK PRIMARY","RUSTENBURG","28 KARLIEN STR, KARKIENOARK",717909461,100,100,100,100]
[119,"KGATSHENG THABISO SEC","RUSTENBURG","2060 LEFFARAGATLHA, PHOKENG",{"$nulls":13},100,90,10,10,100,60,null,8]
[120,"VUKUZENSEZELE PRIMARY","RUSTENBURG","692 FREEDOM PARK RUSTENBURG",812697658,100,100,100,150]
[121,"Hoerskool Gresnwag","Rustenburg","C/O of Molen and Beneden Street",{"v":145967590,"d":"145,967,590"},{"$nulls":12},50,null,50,null,null,50,null,4]
[122,"President Mangope","Rustenburg","TLHABANE",{"$nulls":15},250,250,250,60,60,20]
[123,"Tlhabane Tech","Rustenburg",{"$nulls":14},300,100,100,null,null,46,46,32]
[124,"Seraleng Primary","Rustenburg","1570 Seraleng Ext 1",{"v":793152740,"d":"793,152,740"},null,80,null,80,20,null,null,20]
[125,"Lefaragatlhe Peimary","Rustenburg","Letlhakwaneng Sec, Lefaragatlhe",{"v":145941105,"d":"145,941,105"},100,50,50,50,100,null,null,50,{"$nulls":9},25,25,25]
[126,"Rauwane Sepeng","Rustenburg","2797 Cnr Ncube &Sedikwe Tlhabane",{"v":140610067,"d":"140,610,067"},{"$nulls":12},200,350,200,null,500,45,45,45]
[127,"Bana Pele Primary","Rustenburg","Stand No: 16847 Boitekong Ext 18",{"v":836498596,"d":"836,498,596"},300,200,150,100,{"$nulls":5},100,{"$nulls":7},50,25,50]
[128,"Mojagedi Secondary ","Rustenburg ","305 Maumong village",713712436,{"$nulls":12},50,50,null,null,50,15,null,15]
[129,"Grenville High School","Rustenburg","98 Klopper Street, Rustenburg","014 5920344",{"$nulls":12},100,null,null,100]
[130,"Noka Ya Lorato Primary ","Rustenburg ","Stand 15 Lethabong  ","0122802986",100,100,100,100,110,50,50,60,50,50,{"$nulls":7},30,30,30]
[131,"Maumong","Rustenburg ","E258 Maumong village",649923026,0,0,0,0,0,0,0,10,0,0,null,null,0,0,0,0,0,"¹11",11,13]
[132,"FAPHA","Rustenburg ","4560 VULA, LETHABONG",122700308,160,0,0,50,20,100,50,10,0,0,null,null,0,0,0,0,0,32,32,13]
[133,"Bakwena Sec","Rustenburg ","0369 Thabeng Sec Modikwe",27122601001,0,0,0,0,0,0,0,0,0,2,null,null,0,0,0,0,0,25,20,10]
[134,"Boons Secondary ","Rustenburg","Jamesroad ",606651279,200,150,200,150,70,150,150,70,200,200,null,null,150,150,100,null,null,25,25]
[135,"Tshirologang P.S.","Rustenburg","1774 Ext.2 Boitekong",637239839,200,0,0,200,100,100,100,25,100,100,{"$nulls":7},45,20,28]
[136,"Tsitsing PS","Rustenburg","Stand206 Rakhudu section Tsitsing",142850040,200,100,200,100,50,60,60,10,10,50,null,null,10,60,10,20,20,20,20,8]
[137,"Mazista Primary","Rustenburg","No: 357 Mazista Location Swartruggens 2835",822166816,100,50,50,100,30,0,0,15,0,0,null,null,0,0,0,0,0,0,5,2]
[138,"Bakubung Intermediate School ","Rustenburg ","85 Molope Street Molote Village Boons 0334",837462805,15,20,20,15,25,20,20,10,15,15,null,null,15,0,25,0,0,8,8,8]
[139,"Moitshoki-Mofenyi PS","Rusternburg "," 807 Shomang street Reagile ",795173237,150,null,null,200,20,100,null,20,80,{"$nulls":8},29,29,29]
[140,"SWARTRUGGENS INTERMEDIATE","RUSTENBURG","1 JASMINE STREET RODEON",149411060,100,0,0,100,50,50,50,25,0,0,null,null,0,0,0,0,0,14,14,3]
[141,"Koster Skool Gekomb","Rustenburg","49 Noordstraat Koster","014 54 2013",200,0,0,0,30,null,null,30,100,{"$nulls":3},80,80,{"$nulls":3},20,20,20]
[142,"Rebone lesedi primary ","Rustenburg ","5012 Extension 8 Koster 0348",144630924,100,50,50,100,40,50,50,20,{"$nulls":9},36,36,24]
[143,"Koster intermediate","Rustenburg","33 Bauhenia Street",145432290,50,{"$nulls":11},50,null,50]
[144,"MPHE-BANA II  SECONDARY","RUSTENBURG","4238 EXTENSION 8",835794506,{"$nulls":12},377,180,null,null,50,20,20,20]
[145,"LESELE SECONDARY SCHOOL","RUSTENBURG","MATHOPESTAD","0829286886",{"$nulls":12},100,100,50,null,50,14,14,4]
[146,"Monato Primary School","RUSTENBURG","OORSAAK ROAD JH 44 MODDERFONTEIN",823349985,200,100,100,240]
[147,"KGALAGATSANE PRIMARY SCHOOL ","RUSTENBURG","800 BODIGELO STREET ",145439052,50,0,25,null,null,25,{"$nulls":3},0,null,null,0,0,0,0,0,10,10,7]
[{"$nulls":5},{"$f":"SUM(F3:F151)","v":12783},1610,5229,3318,721,1629,605,403,2070,517,3299,null,{"$f":"SUM(R3:R151)","v":8847},4838,3565,930,1897,1534,1177,527,{"$f":"SUM(F152:Y152)","v":55499}]

{"sheet":"Sheet2","index":3,"n_rows":0,"n_cols":0,"rows_kept":0}

{"sheet":"Sheet3","index":4,"n_rows":0,"n_cols":0,"rows_kept":0}

{"sheet":"Sheet4","index":5,"n_rows":0,"n_cols":0,"rows_kept":0}